Workbook

Sheet NSU
B1: Julia Ruoho | E1: 24.9.2002 Ulvila
B2: SUPERPESIS | E2: Runkosarja | I2: Kärkilyönnit (KL), pesänvälit | Q2: Runkosarja | U2: Ylempi loppusarja | Z2: Alempi loppusarja | AG2: Arvo-ottelut ja mitalit
B3: Vuosi | C3: Sija | D3: Seura | E3: OTT | F3: KUN | G3: LÖI | H3: TOI | I3: KL | J3: 0 > 1 | K3: 1 > 2 | L3: 2 > 3 | M3: 3 > k | N3: KL-% | P3: LÖI | Q3: TOI | R3: L+T | S3: KL | U3: OTT | V3: KUN | W3: LÖI | X3: TOI | Y3: KL | Z3: OTT | AA3: KUN | AB3: LÖI | AC3: TOI | AD3: KL | AE3: IL | AF3: LL | AG3: Halli | AH3: K | AI3: H | AJ3: P
B4: 2018 | D4: Pesäkarhut 3 | F4: suomensarja
B5: 2018 | D5: Pesäkarhut 2 | F5: ykköspesis
B6: 2019 | D6: Pesäkarhut 3 | F6: suomensarja
B7: 2019 | D7: Pesäkarhut 2 | F7: ykköspesis
B8: 2020 | C8: 8. | D8: Fera | E8: 13 | F8: 1 | G8: 5 | H8: 2 | I8: 29 | J8: 3 | K8: 13 | L8: 7 | M8: 6 | N8: 60.4 % | O8: 48 | U8: 2 | V8: 0 | W8: 1 | X8: 0 | Y8: 7
B9: 2021 | C9: 8. | D9: Fera | E9: 21 | F9: 0 | G9: 5 | H9: 4 | I9: 31 | J9: 7 | K9: 10 | L9: 9 | M9: 5 | N9: 37.8 % | O9: 82 | U9: 3 | V9: 0 | W9: 0 | X9: 0 | Y9: 4
B10: 2022 | C10: 6. | D10: Fera | E10: 24 | F10: 0 | G10: 2 | H10: 10 | I10: 57 | J10: 17 | K10: 30 | L10: 8 | M10: 2 | N10: 57.6 % | O10: 99 | U10: 3 | V10: 0 | W10: 0 | X10: 0 | Y10: 4
B11: 2023 | C11: 7. | D11: Fera | E11: 20 | F11: 0 | G11: 4 | H11: 3 | I11: 25 | J11: 6 | K11: 10 | L11: 5 | M11: 4 | N11: 43.9 % | O11: 57 | U11: 3 | V11: 0 | W11: 0 | X11: 1 | Y11: 4
B12: 2024 | C12: 11. | D12: PöU | E12: 24 | F12: 3 | G12: 13 | H12: 10 | I12: 62 | J12: 2 | K12: 23 | L12: 21 | M12: 16 | N12: 49.2 % | O12: 126 | Z12: 8 | AA12: 1 | AB12: 11 | AC12: 5 | AD12: 31
B13: Yhteensä | E13: =SUM(E4:E12) -> 102 | F13: 4 | G13: 29 | H13: 29 | I13: 204 | J13: 35 | K13: 86 | L13: 50 | M13: 33 | N13: =PRODUCT(I13/O13) -> 49.5 % | O13: =SUM(O4:O12) -> 412 | U13: 11 | V13: 0 | W13: 1 | X13: 1 | Y13: 19 | Z13: 8 | AA13: 1 | AB13: 11 | AC13: 5 | AD13: 31 | AE13: 0 | AF13: 0 | AG13: 0 | AH13: 0 | AI13: 0 | AJ13: 0
B14: Pesispörssi | D14: =SUM(F13:H13)+((I13-F13-G13)/3)+(E13/3)+(AE13*25)+(AF13*25)+(AG13*10)+(AH13*25)+(AI13*20)+(AJ13*15) -> 153.0
B16: URA SUPERISSA | E16: OTT | F16: KUN | G16: LÖI | H16: TOI | I16: KL | K16: ka/L | L16: ka/T | M16: ka/KL | N16: K - % | P16: ENSIMMÄISET
B17: Runkosarja | E17: =PRODUCT(E13) -> 102 | F17: =PRODUCT(F13) -> 4 | G17: =PRODUCT(G13) -> 29 | H17: =PRODUCT(H13) -> 29 | I17: =PRODUCT(I13) -> 204 | K17: =PRODUCT((F17+G17)/E17) -> 0.32 | L17: =PRODUCT(H17/E17) -> 0.28 | M17: =PRODUCT(I17/E17) -> 2.00 | N17: =PRODUCT(N13) -> 49.5 % | O17: =PRODUCT(O13) -> 412 | P17: Ottelu | R17: 26.06. 2020 Fera - Pesäkarhut 0-2 (2-9, 1-5) | AB17: 1. ottelu | AD17: 17 v 9 kk 2 pv
B18: Ylempi loppusarja | E18: =PRODUCT(U13) -> 11 | F18: =PRODUCT(V13) -> 0 | G18: =PRODUCT(W13) -> 1 | H18: =PRODUCT(X13) -> 1 | I18: =PRODUCT(Y13) -> 19 | K18: =PRODUCT((F18+G18)/E18) -> 0.09 | L18: =PRODUCT(H18/E18) -> 0.09 | M18: =PRODUCT(I18/E18) -> 1.73 | N18: =PRODUCT(I18/O18) -> 37.3 % | O18: 51 | P18: Lyöty | R18: 28.06. 2020 MyVe - Fera 0-2 (1-3, 1-12) | AB18: 2. ottelu | AD18: 17 v 9 kk 4 pv
B19: Alempi loppusarja | E19: =PRODUCT(Z13) -> 8 | F19: =PRODUCT(AA13) -> 1 | G19: 11 | H19: 5 | I19: 31 | K19: =PRODUCT((F19+G19)/E19) -> 1.50 | L19: =PRODUCT(H19/E19) -> 0.63 | M19: =PRODUCT(I19/E19) -> 3.88 | N19: =PRODUCT(I19/O19) -> 62.0 % | O19: 50 | P19: Tuotu | R19: 05.08. 2020 Virkiä - Fera 0-1 (3-3, 2-3) | AB19: 7. ottelu | AD19: 17 v 10 kk 12 pv
B20: KAIKKI | E20: =SUM(E17:E19) -> 121 | F20: =SUM(F17:F19) -> 5 | G20: =SUM(G17:G19) -> 41 | H20: =SUM(H17:H19) -> 35 | I20: =SUM(I17:I19) -> 254 | K20: =PRODUCT((F20+G20)/E20) -> 0.38 | L20: =PRODUCT(H20/E20) -> 0.29 | M20: =PRODUCT(I20/E20) -> 2.10 | N20: =PRODUCT(I20/O20) -> 49.5 % | O20: =SUM(O17:O19) -> 513 | P20: Kunnari | R20: 05.08. 2020 Virkiä - Fera 0-1 (3-3, 2-3) | AB20: 7. ottelu | AD20: 17 v 10 kk 12 pv
B22: Seurat | D22: Pesäkarhut (1985), kasvattajaseura
D23: Fera (1958)
D24: PöU = Pöytyän Urheilijat (1945)
